fUST/lending_fUST_20250228
["ID","MTS","AMOUNT","RATE_DAILY","PERIOD"]
[354836153,1740729102364,-2703.55,0.00523,120]
[354836154,1740729102374,-493.1,0.00523287,120]
[354836155,1740729102384,-500.0,0.00523287,120]
[354836156,1740729102394,-501.39,0.00523287,120]
[354836157,1740729102404,-297.21589228,0.00523287,120]
[354836158,1740729102414,-531.78,0.00523287,120]
[354836159,1740729102424,-1899.72,0.00523287,120]
[354836160,1740729102433,-864.26,0.00523287,120]
[354836161,1740729102443,-807.93,0.00523287,120]
[354836162,1740729102452,-948.86,0.00523287,120]
[354836163,1740729102462,-500.0,0.00523287,120]
[354836164,1740729102471,-1043.41,0.00523287,120]
[354836165,1740729102481,-500.0,0.00523287,120]
[354836166,1740729102491,-1408.38,0.00523287,120]
[354836167,1740729102501,-871.78,0.00523287,120]
[354836168,1740729102510,-851.03,0.00523287,120]
[354836169,1740729102520,-526.84,0.00523287,120]
[354836170,1740729102530,-694.99,0.00523287,120]
[354836171,1740729102540,-500.0,0.00523287,120]
[354836172,1740729102553,-539.3,0.00523287,120]
[354836173,1740729102563,-938.58,0.00523287,120]
[354836174,1740729102572,-708.44,0.00523287,120]
[354836175,1740729102582,-520.73,0.00523287,120]
[354836176,1740729102591,-676.19,0.00523287,120]
[354836177,1740729102601,-1222.28,0.00523287,15]
[354836178,1740729102611,-517.26,0.00523287,120]
[354836179,1740729102621,-508.02,0.00523287,120]
[354836180,1740729102630,-677.8,0.00523287,120]
[354836181,1740729102640,-604.99,0.00523287,120]
[354836182,1740729102650,-530.51,0.00523287,120]
[354836183,1740729102660,-745.29,0.00523287,120]
[354836184,1740729102671,-523.1,0.00523287,120]
[354836185,1740729102681,-500.0,0.00523287,120]
[354836186,1740729102690,-748.69,0.00523287,120]
[354836187,1740729102699,-874.05,0.00523287,120]
[354836188,1740729102709,-500.0,0.00523287,120]
[354836189,1740729102718,-1007.44,0.00523287,120]
[354836190,1740729102729,-500.0,0.00523287,120]
[354836191,1740729102739,-500.0,0.00523287,120]
[354836192,1740729102748,-753.37,0.00523287,120]
[354836193,1740729102758,-530.93,0.00523287,120]
[354836194,1740729102768,-500.0,0.00523287,120]
[354836195,1740729102777,-772.32,0.00523287,120]
[354836196,1740729102786,-11613.08,0.00523287,7]
[354836197,1740729102799,-532.21,0.00523287,120]
[354836198,1740729102809,-613.58629602,0.00523287,120]
[354836199,1740729102819,-1556.94,0.00523287,120]
[354836200,1740729102828,-500.59,0.00523287,120]
[354836201,1740729102838,-500.0,0.00523287,120]
[354836202,1740729102847,-590.72,0.00523287,120]
[354836203,1740729102857,-4393.23,0.00523287,120]
[354836204,1740729102867,-632.06,0.00523287,120]
[354836205,1740729102876,-609.04000268,0.00523287,120]
[354836206,1740729102887,-1833.79,0.00523287,120]
[354836207,1740729102898,-500.0,0.00523287,120]
[354836208,1740729102908,-2892.98,0.00523287,120]
[354836209,1740729102919,-1008.73,0.00523287,120]
[354836210,1740729102929,-793.95,0.00523287,120]
[354836211,1740729102939,-6516.68,0.00523287,120]
[354836212,1740729102949,-1565.72,0.00523287,120]
[354836213,1740729102958,-1139.58,0.00523287,120]
[354836214,1740729102968,-4010.18,0.00523287,120]
[354836215,1740729102978,-672.53,0.00523287,120]
[354836216,1740729102987,-1915.4,0.00523287,120]
[354836217,1740729102997,-1057.46,0.00523287,120]
[354836218,1740729103006,-588.21,0.00523287,120]
[354836219,1740729103016,-584.47,0.00523287,120]
[354836220,1740729103026,-606.2,0.00523287,120]
[354836221,1740729103035,-1547.61,0.00523287,120]
[354836222,1740729103048,-2877.85,0.00523287,120]
[354836223,1740729103058,-661.27,0.00523287,120]
[354836224,1740729103067,-812.15,0.00523287,120]
[354836225,1740729103076,-1765.26,0.00523287,120]
[354836226,1740729103086,-899.89,0.00523287,120]
[354836227,1740729103096,-525.54,0.00523287,120]
[354836228,1740729103106,-612.01,0.00523287,120]
[354836229,1740729103115,-1314.56,0.00523287,120]
[354836230,1740729103125,-6198.23,0.00523287,120]
[354836231,1740729103135,-48801.26,0.00523287,7]
[354836232,1740729103145,-532.68,0.00523287,120]
[354836233,1740729103154,-2002.68,0.00523287,120]
[354836234,1740729103164,-3085.87,0.00523287,120]
[354836235,1740729103175,-1055.5,0.00523287,120]
[354836236,1740729103185,-502.55,0.00523287,120]
[354836237,1740729103195,-500.0,0.00523287,120]
[354836238,1740729103205,-749.41,0.00523287,120]
[354836239,1740729103215,-1132.97,0.00523287,120]
[354836240,1740729103230,-23601.55,0.00523287,120]
[354836241,1740729103240,-507.38,0.00523287,120]
[354836242,1740729103250,-536.87,0.00523287,120]
[354836243,1740729103259,-746.73,0.00523287,120]
[354836244,1740729103269,-1089.7,0.00523287,120]
[354836245,1740729103279,-2092.1,0.00523287,120]
[354836246,1740729103289,-1310.9,0.00523287,120]
[354836247,1740729103302,-8514.43894728,0.00528,120]
[354836248,1740729103311,-820.39,0.00538,120]
[354836249,1740729103321,-1000.0,0.0054,120]
[354836250,1740729103330,-20000.0,0.00543,120]
[354836251,1740729103340,-710052.0,0.00544,30]
[354836252,1740729103350,-20000.0,0.00545,120]
[354836253,1740729103359,-493.1,0.00547945,120]
[354836254,1740729103368,-500.0,0.00547945,120]
[354836255,1740729103378,-501.39,0.00547945,120]
[354836256,1740729103387,-531.78,0.00547945,120]
[354836257,1740729103396,-1899.72,0.00547945,120]
[354836258,1740729103406,-864.26,0.00547945,120]
[354836259,1740729103415,-807.93,0.00547945,120]
[354836260,1740729103424,-948.86,0.00547945,120]
[354836261,1740729103433,-500.0,0.00547945,120]
[354836262,1740729103443,-1043.41,0.00547945,120]
[354836263,1740729103452,-666.0,0.00547945,120]
[354836264,1740729103462,-666.0,0.00547945,120]
[354836265,1740729103472,-666.0,0.00547945,120]
[354836266,1740729103482,-666.0,0.00547945,120]
[354836267,1740729103492,-666.0,0.00547945,120]
[354836268,1740729103501,-666.0,0.00547945,120]
[354836269,1740729103511,-666.0,0.00547945,120]
[354836270,1740729103520,-666.0,0.00547945,120]
[354836271,1740729103530,-666.0,0.00547945,120]
[354836272,1740729103540,-666.0,0.00547945,120]
[354836273,1740729103554,-745.5983226,0.00547945,120]
[354836274,1740729103564,-500.0,0.00547945,120]
[354836275,1740729103574,-1408.38,0.00547945,120]
[354836276,1740729103584,-871.78,0.00547945,120]
[354836277,1740729103593,-851.03,0.00547945,120]
[354836278,1740729103604,-526.84,0.00547945,120]
[354836279,1740729103614,-694.99,0.00547945,120]
[354836280,1740729103624,-500.0,0.00547945,120]
[354836281,1740729103634,-539.3,0.00547945,120]
[354836282,1740729103643,-500.0,0.00547945,120]
[354836283,1740729103653,-500.0,0.00547945,120]
[354836284,1740729103663,-500.0,0.00547945,120]
[354836285,1740729103672,-938.58,0.00547945,120]
[354836286,1740729103681,-500.0,0.00547945,120]
[354836287,1740729103691,-500.0,0.00547945,120]
[354836288,1740729103700,-500.0,0.00547945,120]
[354836289,1740729103712,-500.0,0.00547945,120]
[354836290,1740729103723,-500.0,0.00547945,120]
[354836291,1740729103735,-500.0,0.00547945,120]
[354836292,1740729103744,-500.0,0.00547945,120]
[354836293,1740729103754,-500.0,0.00547945,120]
[354836294,1740729103764,-500.0,0.00547945,120]
[354836295,1740729103774,-500.0,0.00547945,120]
[354836296,1740729103784,-500.0,0.00547945,120]
[354836297,1740729103796,-500.0,0.00547945,120]
[354836298,1740729103809,-500.0,0.00547945,120]
[354836299,1740729103819,-500.0,0.00547945,120]
[354836300,1740729103830,-500.0,0.00547945,120]
[354836301,1740729103839,-191.98032162,0.00547945,120]
[354836302,1740729103849,-708.44,0.00547945,120]
[354836303,1740729103858,-520.73,0.00547945,120]
[354836304,1740729103868,-676.19,0.00547945,120]
[354836305,1740729103878,-1222.28,0.00547945,15]
[354836306,1740729103888,-508.02,0.00547945,120]
[354836307,1740729103898,-677.8,0.00547945,120]
[354836308,1740729103908,-604.99,0.00547945,120]
[354836309,1740729103917,-530.51,0.00547945,120]
[354836310,1740729103927,-745.29,0.00547945,120]
[354836311,1740729103936,-523.1,0.00547945,120]
[354836312,1740729103946,-500.0,0.00547945,120]
[354836313,1740729103955,-748.69,0.00547945,120]
[354836314,1740729103964,-874.05,0.00547945,120]
[354836315,1740729103974,-500.0,0.00547945,120]
[354836316,1740729103983,-1007.44,0.00547945,120]
[354836317,1740729103992,-395.59472284,0.00547945,120]
[354836318,1740729104002,-500.0,0.00547945,120]
[354836319,1740729104011,-753.37,0.00547945,120]
[354836320,1740729104020,-530.93,0.00547945,120]
[354836321,1740729104030,-500.0,0.00547945,120]
[354836322,1740729104039,-772.32,0.00547945,120]
[354836323,1740729104052,-11613.08,0.00547945,7]
[354836324,1740729104061,-532.21,0.00547945,120]
[354836325,1740729104070,-1556.94,0.00547945,120]
[354836326,1740729104080,-500.59,0.00547945,120]
[354836327,1740729104090,-500.0,0.00547945,120]
[354836328,1740729104099,-590.72,0.00547945,120]
[354836329,1740729104109,-4393.23,0.00547945,120]
[354836330,1740729104230,-632.06,0.00547945,120]
[354836331,1740729104241,-1833.79,0.00547945,120]
[354836332,1740729104251,-500.0,0.00547945,120]
[354836333,1740729104260,-2892.98,0.00547945,120]
[354836334,1740729104271,-1008.73,0.00547945,120]
[354836335,1740729104280,-793.95,0.00547945,120]
[354836336,1740729104290,-6516.68,0.00547945,120]
[354836337,1740729104304,-1565.72,0.00547945,120]
[354836338,1740729104313,-1139.58,0.00547945,120]
[354836339,1740729104323,-4010.18,0.00547945,120]
[354836340,1740729104332,-672.53,0.00547945,120]
[354836341,1740729104342,-1915.4,0.00547945,120]
[354836342,1740729104351,-1057.46,0.00547945,120]
[354836343,1740729104361,-588.21,0.00547945,120]
[354836344,1740729104370,-584.47,0.00547945,120]
[354836345,1740729104380,-606.2,0.00547945,120]
[354836346,1740729104389,-1547.61,0.00547945,120]
[354836347,1740729104399,-2877.85,0.00547945,120]
[354836348,1740729104408,-661.27,0.00547945,120]
[354836349,1740729104417,-812.15,0.00547945,120]
[354836350,1740729104427,-1765.26,0.00547945,120]
[354836351,1740729104436,-899.89,0.00547945,120]
[354836352,1740729104446,-525.54,0.00547945,120]
[354836353,1740729104456,-612.01,0.00547945,120]
[354836354,1740729104466,-1314.56,0.00547945,120]
[354836355,1740729104475,-6198.23,0.00547945,120]
[354836356,1740729104485,-48801.26,0.00547945,7]
[354836357,1740729104494,-532.68,0.00547945,120]
[354836358,1740729104505,-2002.68,0.00547945,120]
[354836359,1740729104515,-3085.87,0.00547945,120]
[354836360,1740729104525,-1055.5,0.00547945,120]
[354836361,1740729104535,-502.55,0.00547945,120]
[354836362,1740729104549,-500.0,0.00547945,120]
[354836363,1740729104558,-749.41,0.00547945,120]
[354836364,1740729104568,-1132.97,0.00547945,120]
[354836365,1740729104578,-23601.55,0.00547945,120]
[354836366,1740729104589,-507.38,0.00547945,120]
[354836367,1740729104598,-536.87,0.00547945,120]
[354836368,1740729104608,-746.73,0.00547945,120]
[354836369,1740729104618,-1089.7,0.00547945,120]
[354836370,1740729104628,-2092.1,0.00547945,120]
[354836371,1740729104637,-1310.9,0.00547945,120]
[354836372,1740729104648,-150.0,0.00547945,15]
[354836373,1740729104657,-150.0,0.00547945,15]
[354836374,1740729104668,-1000.0,0.00547945,30]
[354836375,1740729104677,-150.0,0.005482,120]
[354836376,1740729104687,-250.0,0.00548493,15]
[354836377,1740729104696,-250.0,0.00548493,15]
[354836378,1740729104705,-581.68104304,0.00548493,30]
[354836379,1740729104716,-350.0,0.00549041,15]
[354836380,1740729104726,-350.0,0.00549041,15]
[354836381,1740729104736,-250.0018478,0.00549589,15]
[354836382,1740729104746,-450.0,0.00549589,15]
[354836383,1740729104755,-20000.0,0.0055,120]
[354836384,1740729104765,-20000.0,0.0055,120]
[354836385,1740729104774,-550.0,0.00550137,15]
[354836386,1740729104783,-650.0,0.00550685,15]
[354836387,1740729104793,-750.0,0.00551233,15]
[354836388,1740729104806,-850.0,0.00551781,15]
[354836389,1740729104816,-950.0,0.00552329,15]
[354836390,1740729104825,-1050.0,0.00552877,15]
[354836391,1740729104835,-1039.34349921,0.00553425,15]
[354836392,1740729104845,-493.1,0.00572602,120]
[354836393,1740729104854,-500.0,0.00572602,120]
[354836394,1740729104864,-501.39,0.00572602,120]
[354836395,1740729104874,-531.78,0.00572602,120]
[354836396,1740729104883,-1899.72,0.00572602,120]
[354836397,1740729104894,-864.26,0.00572602,120]
[354836398,1740729104903,-807.93,0.00572602,120]
[354836399,1740729104913,-948.86,0.00572602,120]
[354836400,1740729104923,-500.0,0.00572602,120]
[354836401,1740729104932,-1043.41,0.00572602,120]
[354836402,1740729104942,-500.0,0.00572602,120]
[354836403,1740729104952,-1408.38,0.00572602,120]
[354836404,1740729104963,-871.78,0.00572602,120]
[354836405,1740729104972,-851.03,0.00572602,120]
[354836406,1740729104982,-526.84,0.00572602,120]
[354836407,1740729104992,-694.99,0.00572602,120]
[354836408,1740729105002,-539.3,0.00572602,120]
[354836409,1740729105012,-938.58,0.00572602,120]
[354836410,1740729105022,-708.44,0.00572602,120]
[354836411,1740729105031,-520.73,0.00572602,120]
[354836412,1740729105041,-676.19,0.00572602,120]
[354836413,1740729105053,-1222.28,0.00572602,15]
[354836414,1740729105063,-508.02,0.00572602,120]
[354836415,1740729105073,-677.8,0.00572602,120]
[354836416,1740729105083,-604.99,0.00572602,120]
[354836417,1740729105093,-530.51,0.00572602,120]
[354836418,1740729105103,-745.29,0.00572602,120]
[354836419,1740729105113,-523.1,0.00572602,120]
[354836420,1740729105122,-355.09,0.00572602,120]
[354836421,1740729105132,-748.69,0.00572602,120]
[354836422,1740729105142,-874.05,0.00572602,120]
[354836423,1740729105151,-500.0,0.00572602,120]
[354836424,1740729105161,-1007.44,0.00572602,120]
[354836425,1740729105170,-501.79413784,0.00572602,120]
[354836426,1740729105179,-753.37,0.00572602,120]
[354836427,1740729105189,-500.0,0.00572602,120]
[354836428,1740729105199,-530.93,0.00572602,120]
[354836429,1740729105209,-772.32,0.00572602,120]
[354836430,1740729105219,-11613.08,0.00572602,7]
[354836431,1740729105229,-532.21,0.00572602,120]
[354836432,1740729105239,-1556.94,0.00572602,120]
[354836433,1740729105249,-500.59,0.00572602,120]
[354836434,1740729105259,-500.0,0.00572602,120]
[354836435,1740729105269,-590.72,0.00572602,120]
[354836436,1740729105278,-4393.23,0.00572602,120]
[354836437,1740729105288,-632.06,0.00572602,120]
[354836438,1740729105299,-1833.79,0.00572602,120]
[354836439,1740729105309,-243.18989125,0.00572602,120]
[354836440,1740729105319,-2892.98,0.00572602,120]
[354836441,1740729105328,-1008.73,0.00572602,120]
[354836442,1740729105338,-793.95,0.00572602,120]
[354836443,1740729105348,-6516.68,0.00572602,120]
[354836444,1740729105358,-1565.72,0.00572602,120]
[354836445,1740729105367,-1139.58,0.00572602,120]
[354836446,1740729105376,-4010.18,0.00572602,120]
[354836447,1740729105386,-672.53,0.00572602,120]
[354836448,1740729105395,-1915.4,0.00572602,120]
[354836449,1740729105404,-1057.46,0.00572602,120]
[354836450,1740729105414,-588.21,0.00572602,120]
[354836451,1740729105425,-584.47,0.00572602,120]
[354836452,1740729105435,-606.2,0.00572602,120]
[354836453,1740729105444,-1547.61,0.00572602,120]
[354836454,1740729105455,-2877.85,0.00572602,120]
[354836455,1740729105466,-661.27,0.00572602,120]
[354836456,1740729105476,-812.15,0.00572602,120]
[354836457,1740729105487,-1765.26,0.00572602,120]
[354836458,1740729105498,-899.89,0.00572602,120]
[354836459,1740729105508,-525.54,0.00572602,120]
[354836460,1740729105518,-612.01,0.00572602,120]
[354836461,1740729105527,-1314.56,0.00572602,120]
[354836462,1740729105536,-6198.23,0.00572602,120]
[354836463,1740729105547,-48801.26,0.00572602,7]
[354836464,1740729105556,-532.68,0.00572602,120]
[354836465,1740729105566,-2002.68,0.00572602,120]
[354836466,1740729105575,-3085.87,0.00572602,120]
[354836467,1740729105584,-1055.5,0.00572602,120]
[354836468,1740729105593,-502.55,0.00572602,120]
[354836469,1740729105603,-479.83,0.00572602,120]
[354836470,1740729105613,-749.41,0.00572602,120]
[354836471,1740729105623,-1132.97,0.00572602,120]
[354836472,1740729105632,-23601.55,0.00572602,120]
[354836473,1740729105642,-507.38,0.00572602,120]
[354836474,1740729105651,-536.87,0.00572602,120]
[354836475,1740729105661,-746.73,0.00572602,120]
[354836476,1740729105670,-1089.7,0.00572602,120]
[354836477,1740729105680,-2092.1,0.00572602,120]
[354836478,1740729105691,-1310.9,0.00572602,120]
[354836479,1740729105702,-15605.34263919,0.00589,30]
[354836480,1740729105713,-217.85517937,0.0059,120]
[354836481,1740729105725,-1565.56606,0.0059139,67]
[354836482,1740729105735,-493.1,0.0059726,120]
[354836483,1740729105744,-500.0,0.0059726,120]
[354836484,1740729105755,-501.39,0.0059726,120]
[354836485,1740729105764,-531.78,0.0059726,120]
[354836486,1740729105774,-1899.72,0.0059726,120]
[354836487,1740729105784,-864.26,0.0059726,120]
[354836488,1740729105798,-807.93,0.0059726,120]
[354836489,1740729105807,-948.86,0.0059726,120]
[354836490,1740729105816,-500.0,0.0059726,120]
[354836491,1740729105825,-1043.41,0.0059726,120]
[354836492,1740729105835,-453.30843187,0.0059726,120]
[354836493,1740729105845,-1408.38,0.0059726,120]
[354836494,1740729105854,-871.78,0.0059726,120]
[354836495,1740729105864,-851.03,0.0059726,120]
[354836496,1740729105874,-526.84,0.0059726,120]
[354836497,1740729105885,-694.99,0.0059726,120]
[354836498,1740729105895,-539.3,0.0059726,120]
[354836499,1740729105905,-938.58,0.0059726,120]
[354836500,1740729105915,-708.44,0.0059726,120]
[354836501,1740729105924,-520.73,0.0059726,120]
[354836502,1740729105934,-676.19,0.0059726,120]
[354836503,1740729105943,-1222.28,0.0059726,15]
[354836504,1740729105952,-508.02,0.0059726,120]
[354836505,1740729105962,-677.8,0.0059726,120]
[354836506,1740729105971,-604.99,0.0059726,120]
[354836507,1740729105981,-530.51,0.0059726,120]
[354836508,1740729105991,-745.29,0.0059726,120]
[354836509,1740729106000,-523.1,0.0059726,120]
[354836510,1740729106011,-748.69,0.0059726,120]
[354836511,1740729106020,-874.05,0.0059726,120]
[354836512,1740729106030,-289.96927752,0.0059726,120]
[354836513,1740729106040,-1007.44,0.0059726,120]
[354836514,1740729106054,-753.37,0.0059726,120]
[354836515,1740729106064,-500.0,0.0059726,120]
[354836516,1740729106073,-530.93,0.0059726,120]
[354836517,1740729106083,-772.32,0.0059726,120]
[354836518,1740729106093,-11613.08,0.0059726,7]
[354836519,1740729106102,-532.21,0.0059726,120]
[354836520,1740729106112,-1556.94,0.0059726,120]
[354836521,1740729106122,-500.59,0.0059726,120]
[354836522,1740729106131,-500.0,0.0059726,120]
[354836523,1740729106141,-590.72,0.0059726,120]
[354836524,1740729106151,-4393.23,0.0059726,120]
[354836525,1740729106162,-632.06,0.0059726,120]
[354836526,1740729106172,-1833.79,0.0059726,120]
[354836527,1740729106182,-2892.98,0.0059726,120]
[354836528,1740729106192,-1008.73,0.0059726,120]
[354836529,1740729106203,-793.95,0.0059726,120]
[354836530,1740729106212,-6516.68,0.0059726,120]
[354836531,1740729106222,-1565.72,0.0059726,120]
[354836532,1740729106232,-1139.58,0.0059726,120]
[354836533,1740729106242,-4010.18,0.0059726,120]
[354836534,1740729106252,-672.53,0.0059726,120]
[354836535,1740729106262,-1915.4,0.0059726,120]
[354836536,1740729106271,-1057.46,0.0059726,120]
[354836537,1740729106281,-588.21,0.0059726,120]
[354836538,1740729106290,-584.47,0.0059726,120]
[354836539,1740729106301,-606.2,0.0059726,120]
[354836540,1740729106311,-1547.61,0.0059726,120]
[354836541,1740729106322,-2877.85,0.0059726,120]
[354836542,1740729106331,-661.27,0.0059726,120]
[354836543,1740729106340,-812.15,0.0059726,120]
[354836544,1740729106350,-1765.26,0.0059726,120]
[354836545,1740729106359,-899.89,0.0059726,120]
[354836546,1740729106369,-525.54,0.0059726,120]
[354836547,1740729106379,-612.01,0.0059726,120]
[354836548,1740729106388,-1314.56,0.0059726,120]
[354836549,1740729106397,-6198.23,0.0059726,120]
[354836550,1740729106407,-48801.26,0.0059726,7]
[354836551,1740729106417,-532.68,0.0059726,120]
[354836552,1740729106427,-2002.68,0.0059726,120]
[354836553,1740729106437,-3085.87,0.0059726,120]
[354836554,1740729106447,-1055.5,0.0059726,120]
[354836555,1740729106456,-502.55,0.0059726,120]
[354836556,1740729106466,-749.41,0.0059726,120]
[354836557,1740729106477,-1132.97,0.0059726,120]
[354836558,1740729106486,-23601.55,0.0059726,120]
[354836559,1740729106495,-507.38,0.0059726,120]
[354836560,1740729106505,-536.87,0.0059726,120]
[354836561,1740729106514,-746.73,0.0059726,120]
[354836562,1740729106523,-1089.7,0.0059726,120]
[354836563,1740729106533,-2092.1,0.0059726,120]
[354836564,1740729106543,-1310.9,0.0059726,120]
[354836565,1740729106556,-4000.0,0.005988,120]
[354836566,1740729106565,-40155.2912211,0.00599999,120]
[354836567,1740729106575,-3633.25163077,0.006,120]
[354836568,1740729106698,-20000.0,0.006,120]
[354836569,1740729106708,-200.0,0.006,120]
[354836570,1740729106719,-20000.0,0.006,120]
[354836571,1740729106730,-500.0,0.006,120]
[354836572,1740729106740,-500.74464982,0.00609902,120]
[354836573,1740729106750,-6038.83794662,0.00618567,30]
[354836574,1740729106759,-152.45,0.006186,87]
[354836575,1740729106769,-152.45,0.006186,87]
[354836576,1740729106778,-152.45,0.006186,87]
[354836577,1740729106788,-152.45,0.006186,87]
[354836578,1740729106798,-152.45,0.006186,87]
[354836579,1740729106812,-152.45,0.006186,87]
[354836580,1740729106822,-152.45,0.006186,87]
[354836581,1740729106832,-152.45,0.006186,87]
[354836582,1740729106841,-152.45,0.006186,87]
[354836583,1740729106852,-152.45,0.006186,87]
[354836584,1740729106874,-152.45,0.006186,87]
[354836585,1740729106895,-152.45,0.006186,87]
[354836586,1740729106907,-152.45,0.006186,87]
[354836587,1740729106917,-493.24163319,0.00621917,120]
[354836588,1740729106927,-371.87842068,0.00621917,120]
[354836589,1740729106937,-501.55505028,0.00621917,120]
[354836590,1740729106946,-531.84,0.00621917,120]
[354836591,1740729106956,-1899.886189,0.00621917,120]
[354836592,1740729106965,-864.42,0.00621917,120]
[354836593,1740729106975,-807.99,0.00621917,120]
[354836594,1740729106985,-948.94241633,0.00621917,120]
[354836595,1740729106994,-453.68398477,0.00621917,120]
[354836596,1740729107004,-1043.4144993,0.00621917,120]
[354836597,1740729107014,-1408.4158882,0.00621917,120]
[354836598,1740729107024,-871.79,0.00621917,120]
[354836599,1740729107034,-851.25,0.00621917,120]
[354836600,1740729107044,-527.03,0.00621917,120]
[354836601,1740729107056,-695.05486164,0.00621917,120]
[354836602,1740729107065,-539.39,0.00621917,120]
[354836603,1740729107075,-938.64577761,0.00621917,120]
[354836604,1740729107085,-708.65587567,0.00621917,120]
[354836605,1740729107095,-520.86271444,0.00621917,120]
[354836606,1740729107105,-676.2629265,0.00621917,120]
[354836607,1740729107114,-1222.35743071,0.00621917,15]
[354836608,1740729107124,-508.23091863,0.00621917,120]
[354836609,1740729107134,-678.03448424,0.00621917,120]
[354836610,1740729107144,-605.02,0.00621917,120]
[354836611,1740729107155,-530.74560598,0.00621917,120]
[354836612,1740729107165,-745.50694575,0.00621917,120]
[354836613,1740729107175,-523.21,0.00621917,120]
[354836614,1740729107185,-748.76,0.00621917,120]
[354836615,1740729107195,-874.07046684,0.00621917,120]
[354836616,1740729107205,-1007.4639482,0.00621917,120]
[354836617,1740729107216,-753.6,0.00621917,120]
[354836618,1740729107226,-453.34,0.00621917,120]
[354836619,1740729107236,-531.10091693,0.00621917,120]
[354836620,1740729107246,-772.51950989,0.00621917,120]
[354836621,1740729107256,-11613.30970391,0.00621917,7]
[354836622,1740729107266,-532.27746141,0.00621917,120]
[354836623,1740729107276,-1557.0604,0.00621917,120]
[354836624,1740729107285,-500.61780822,0.00621917,120]
[354836625,1740729107294,-162.55,0.00621917,120]
[354836626,1740729107308,-590.82,0.00621917,120]
[354836627,1740729107318,-4393.36121116,0.00621917,120]
[354836628,1740729107329,-632.11,0.00621917,120]
[354836629,1740729107340,-1834.0,0.00621917,120]
[354836630,1740729107350,-2892.98272255,0.00621917,120]
[354836631,1740729107361,-1008.83974564,0.00621917,120]
[354836632,1740729107372,-794.05,0.00621917,120]
[354836633,1740729107382,-6516.85864894,0.00621917,120]
[354836634,1740729107393,-1565.75471739,0.00621917,120]
[354836635,1740729107403,-1139.64,0.00621917,120]
[354836636,1740729107413,-4010.32270767,0.00621917,120]
[354836637,1740729107423,-672.66,0.00621917,120]
[354836638,1740729107434,-1915.51,0.00621917,120]
[354836639,1740729107444,-1057.49,0.00621917,120]
[354836640,1740729107454,-588.31,0.00621917,120]
[354836641,1740729107464,-584.6803765,0.00621917,120]
[354836642,1740729107475,-606.39890389,0.00621917,120]
[354836643,1740729107485,-1547.63,0.00621917,120]
[354836644,1740729107494,-2877.97,0.00621917,120]
[354836645,1740729107503,-661.42,0.00621917,120]
[354836646,1740729107513,-812.23376966,0.00621917,120]
[354836647,1740729107523,-1765.39905578,0.00621917,120]
[354836648,1740729107532,-899.93,0.00621917,120]
[354836649,1740729107542,-525.6,0.00621917,120]
[354836650,1740729107557,-612.10213314,0.00621917,120]
[354836651,1740729107567,-1314.58678288,0.00621917,120]
[354836652,1740729107577,-6198.3,0.00621917,120]